[Event "December 19 Early 2023"]
[Site "https://www.chess.com"]
[Date "2023.12.19"]
[Round "4"]
[White "Sailer, Mike"]
[Black "Gurevich, Dmitry"]
[Result "1-0"]
[Board "198"]
[TimeControl "180+1"]
[WhiteFideId "2012901"]
[BlackFideId "2000407"]
[WhiteElo "2109"]
[BlackElo "2506"]
[WhiteTeam "USA"]
[BlackTeam "USA"]
[WhiteClock "0:00:09"]
[BlackClock "0:00:00"]

1. d4 {[%clk 0:03:00]}  Nf6 {[%clk 0:02:57]} 2. Nc3 {[%clk 0:02:56]}  d5 {[%clk 0:02:56]} 3. Bf4 {[%clk 0:02:56]}  a6 {[%clk 0:02:54]} 4. e3 {[%clk 0:02:47]}  e6 {[%clk 0:02:52]} 5. Nf3 {[%clk 0:02:47]}  c5 {[%clk 0:02:50]} 6. a3 {[%clk 0:02:33]}  Nc6 {[%clk 0:02:47]} 7. dxc5 {[%clk 0:02:22]}  Bxc5 {[%clk 0:02:44]} 8. Bd3 {[%clk 0:02:23]}  Bd6 {[%clk 0:02:28]} 9. Bxd6 {[%clk 0:02:07]}  Qxd6 {[%clk 0:02:26]} 10. e4 {[%clk 0:02:07]}  d4 {[%clk 0:02:12]} 11. Ne2 {[%clk 0:01:54]}  e5 {[%clk 0:02:07]} 12. O-O {[%clk 0:01:52]}  O-O {[%clk 0:02:04]} 13. h3 {[%clk 0:01:45]}  h6 {[%clk 0:01:58]} 14. Ng3 {[%clk 0:01:43]}  Be6 {[%clk 0:01:54]} 15. Re1 {[%clk 0:01:30]}  Rac8 {[%clk 0:01:49]} 16. Nf5 {[%clk 0:01:29]}  Bxf5 {[%clk 0:01:47]} 17. exf5 {[%clk 0:01:30]}  Rfe8 {[%clk 0:01:43]} 18. Nd2 {[%clk 0:01:28]}  b5 {[%clk 0:01:20]} 19. b4 {[%clk 0:01:17]}  Nd5 {[%clk 0:01:09]} 20. Ne4 {[%clk 0:01:16]}  Qd8 {[%clk 0:00:55]} 21. Nc5 {[%clk 0:01:12]}  Nc3 {[%clk 0:00:51]} 22. Qf3 {[%clk 0:01:01]}  a5 {[%clk 0:00:42]} 23. Nb7 {[%clk 0:00:39]}  Qc7 {[%clk 0:00:38]} 24. Nxa5 {[%clk 0:00:38]}  Nxa5 {[%clk 0:00:37]} 25. bxa5 {[%clk 0:00:38]}  f6 {[%clk 0:00:34]} 26. a6 {[%clk 0:00:32]}  Ra8 {[%clk 0:00:28]} 27. a4 {[%clk 0:00:32]}  Rxa6 {[%clk 0:00:20]} 28. axb5 {[%clk 0:00:30]}  Rxa1 {[%clk 0:00:19]} 29. Rxa1 {[%clk 0:00:30]}  e4 {[%clk 0:00:18]} 30. Qh5 {[%clk 0:00:20]}  Kf8 {[%clk 0:00:13]} 31. b6 {[%clk 0:00:14]}  Qxb6 {[%clk 0:00:10]} 32. Bc4 {[%clk 0:00:14]}  Qc7 {[%clk 0:00:09]} 33. Ra6 {[%clk 0:00:10]}  e3 {[%clk 0:00:07]} 34. fxe3 {[%clk 0:00:09]}  dxe3 {[%clk 0:00:06]} 35. Rc6 {[%clk 0:00:10]}  Qd7 {[%clk 0:00:02]} 36. Rd6 {[%clk 0:00:09]}  Qc7 {[%clk 0:00:00]} 37. Rc6 {[%clk 0:00:09]} 1-0

[Event "December 19 Early 2023"]
[Site "https://www.chess.com"]
[Date "2023.12.19"]
[Round "4"]
[White "Sahin, Sarp"]
[Black "Dominguez Rincon, Miller Duvan"]
[Result "1-0"]
[Board "200"]
[TimeControl "180+1"]
[WhiteFideId "51605066"]
[BlackFideId "4406583"]
[WhiteElo "1775"]
[BlackElo "1960"]
[WhiteTeam "TUR"]
[BlackTeam "COL"]
[WhiteClock "0:00:12"]
[BlackClock "0:00:03"]

1. d4 {[%clk 0:03:00]}  d5 {[%clk 0:02:58]} 2. Bf4 {[%clk 0:03:00]}  Nf6 {[%clk 0:02:57]} 3. e3 {[%clk 0:03:00]}  c5 {[%clk 0:02:57]} 4. c3 {[%clk 0:03:00]}  Nc6 {[%clk 0:02:55]} 5. Nd2 {[%clk 0:03:01]}  e6 {[%clk 0:02:55]} 6. Ngf3 {[%clk 0:03:00]}  Bd6 {[%clk 0:02:55]} 7. Bg3 {[%clk 0:02:59]}  O-O {[%clk 0:02:55]} 8. Bd3 {[%clk 0:02:59]}  Qe7 {[%clk 0:02:54]} 9. O-O {[%clk 0:02:58]}  e5 {[%clk 0:02:54]} 10. dxe5 {[%clk 0:02:59]}  Nxe5 {[%clk 0:02:55]} 11. Nxe5 {[%clk 0:02:59]}  Bxe5 {[%clk 0:02:55]} 12. Bxe5 {[%clk 0:02:59]}  Qxe5 {[%clk 0:02:56]} 13. Re1 {[%clk 0:02:57]}  Bf5 {[%clk 0:02:51]} 14. Nf3 {[%clk 0:02:56]}  Qe6 {[%clk 0:02:50]} 15. Ng5 {[%clk 0:02:53]}  Qe5 {[%clk 0:02:48]} 16. f4 {[%clk 0:02:53]}  Qd6 {[%clk 0:02:22]} 17. Bxf5 {[%clk 0:02:51]}  Rfe8 {[%clk 0:02:17]} 18. Nf3 {[%clk 0:02:44]}  Rad8 {[%clk 0:02:12]} 19. Ne5 {[%clk 0:02:31]}  Qb6 {[%clk 0:02:04]} 20. Qc2 {[%clk 0:02:22]}  g6 {[%clk 0:01:55]} 21. Bd3 {[%clk 0:02:16]}  c4 {[%clk 0:01:55]} 22. Bf1 {[%clk 0:02:13]}  Ne4 {[%clk 0:01:55]} 23. Rad1 {[%clk 0:02:11]}  f6 {[%clk 0:01:38]} 24. Nf3 {[%clk 0:02:04]}  Re7 {[%clk 0:01:23]} 25. Rd4 {[%clk 0:01:51]}  Red7 {[%clk 0:00:52]} 26. Red1 {[%clk 0:01:39]}  Qe6 {[%clk 0:00:52]} 27. Bxc4 {[%clk 0:01:31]}  dxc4 {[%clk 0:00:53]} 28. Rxd7 {[%clk 0:01:30]}  Rxd7 {[%clk 0:00:45]} 29. Rxd7 {[%clk 0:01:28]}  Qxd7 {[%clk 0:00:42]} 30. Qxe4 {[%clk 0:01:27]}  Qd1+ {[%clk 0:00:41]} 31. Kf2 {[%clk 0:01:25]}  Kg7 {[%clk 0:00:39]} 32. Qxc4 {[%clk 0:00:57]}  Qc2+ {[%clk 0:00:30]} 33. Qe2 {[%clk 0:00:57]}  Qe4 {[%clk 0:00:29]} 34. a3 {[%clk 0:00:56]}  a6 {[%clk 0:00:27]} 35. Qd2 {[%clk 0:00:53]}  Kh6 {[%clk 0:00:25]} 36. Nd4 {[%clk 0:00:50]}  b5 {[%clk 0:00:24]} 37. Qe2 {[%clk 0:00:46]}  Qb1 {[%clk 0:00:19]} 38. Kg3 {[%clk 0:00:39]}  Qe4 {[%clk 0:00:18]} 39. h4 {[%clk 0:00:34]}  Qd5 {[%clk 0:00:17]} 40. Qf3 {[%clk 0:00:31]}  Qd6 {[%clk 0:00:15]} 41. Qb7 {[%clk 0:00:22]}  Qc5 {[%clk 0:00:05]} 42. Qf7 {[%clk 0:00:19]}  a5 {[%clk 0:00:04]} 43. Qxf6 {[%clk 0:00:18]}  b4 {[%clk 0:00:04]} 44. Qg5+ {[%clk 0:00:17]}  Qxg5+ {[%clk 0:00:03]} 45. hxg5+ {[%clk 0:00:18]}  Kh5 {[%clk 0:00:04]} 46. axb4 {[%clk 0:00:13]}  axb4 {[%clk 0:00:05]} 47. Ne6 {[%clk 0:00:11]}  h6 {[%clk 0:00:03]} 48. Ng7# {[%clk 0:00:12]} 1-0

[Event "December 19 Early 2023"]
[Site "https://www.chess.com"]
[Date "2023.12.19"]
[Round "4"]
[White "Perez Cruz, Adianet"]
[Black "Burmakin, Evgeniy"]
[Result "0-1"]
[Board "202"]
[TimeControl "180+1"]
[WhiteFideId "3510115"]
[BlackFideId "4163729"]
[WhiteElo "2001"]
[BlackElo "2106"]
[WhiteTeam "CUB"]
[BlackTeam "RUS"]
[WhiteClock "0:00:26"]
[BlackClock "0:00:10"]

1. d4 {[%clk 0:03:00]}  Nf6 {[%clk 0:02:59]} 2. Bg5 {[%clk 0:02:58]}  c5 {[%clk 0:02:57]} 3. Bxf6 {[%clk 0:02:58]}  exf6 {[%clk 0:02:52]} 4. d5 {[%clk 0:02:58]}  Qb6 {[%clk 0:02:50]} 5. Qc1 {[%clk 0:02:53]}  d6 {[%clk 0:02:44]} 6. c4 {[%clk 0:02:49]}  f5 {[%clk 0:02:43]} 7. Nc3 {[%clk 0:02:48]}  Be7 {[%clk 0:02:39]} 8. e3 {[%clk 0:02:48]}  O-O {[%clk 0:02:36]} 9. Nf3 {[%clk 0:02:48]}  Bf6 {[%clk 0:02:35]} 10. Bd3 {[%clk 0:02:48]}  g6 {[%clk 0:02:34]} 11. O-O {[%clk 0:02:48]}  Nd7 {[%clk 0:02:34]} 12. Qc2 {[%clk 0:02:46]}  Ne5 {[%clk 0:02:32]} 13. Nxe5 {[%clk 0:02:45]}  Bxe5 {[%clk 0:02:33]} 14. h3 {[%clk 0:02:42]}  Bd7 {[%clk 0:02:33]} 15. a4 {[%clk 0:02:39]}  Rae8 {[%clk 0:02:28]} 16. a5 {[%clk 0:02:38]}  Qd8 {[%clk 0:02:28]} 17. Rfe1 {[%clk 0:02:35]}  Qh4 {[%clk 0:02:25]} 18. f4 {[%clk 0:02:31]}  Bg7 {[%clk 0:02:16]} 19. Qf2 {[%clk 0:02:31]}  Qf6 {[%clk 0:02:10]} 20. Re2 {[%clk 0:02:26]}  Qd8 {[%clk 0:02:06]} 21. a6 {[%clk 0:02:20]}  Bxc3 {[%clk 0:01:59]} 22. bxc3 {[%clk 0:02:21]}  b6 {[%clk 0:01:59]} 23. e4 {[%clk 0:02:16]}  fxe4 {[%clk 0:01:59]} 24. Rxe4 {[%clk 0:02:17]}  Rxe4 {[%clk 0:01:56]} 25. Bxe4 {[%clk 0:02:18]}  Qf6 {[%clk 0:01:54]} 26. Qf3 {[%clk 0:02:05]}  Re8 {[%clk 0:01:51]} 27. Rf1 {[%clk 0:02:05]}  Bc8 {[%clk 0:01:46]} 28. g4 {[%clk 0:01:58]}  Bxa6 {[%clk 0:01:44]} 29. Qd3 {[%clk 0:01:55]}  Qe7 {[%clk 0:01:30]} 30. Bg2 {[%clk 0:01:36]}  Qe3+ {[%clk 0:00:55]} 31. Qxe3 {[%clk 0:01:36]}  Rxe3 {[%clk 0:00:56]} 32. Ra1 {[%clk 0:01:37]}  Bxc4 {[%clk 0:00:56]} 33. Rxa7 {[%clk 0:01:37]}  Rxc3 {[%clk 0:00:52]} 34. Rd7 {[%clk 0:01:35]}  b5 {[%clk 0:00:46]} 35. Rxd6 {[%clk 0:01:35]}  Rd3 {[%clk 0:00:40]} 36. Rc6 {[%clk 0:01:31]}  Bxd5 {[%clk 0:00:38]} 37. Rxc5 {[%clk 0:01:28]}  Rd1+ {[%clk 0:00:26]} 38. Kf2 {[%clk 0:01:18]}  Rd2+ {[%clk 0:00:17]} 39. Ke3 {[%clk 0:01:17]}  Rxg2 {[%clk 0:00:17]} 40. Rxd5 {[%clk 0:01:17]}  b4 {[%clk 0:00:14]} 41. Rb5 {[%clk 0:01:12]}  b3 {[%clk 0:00:14]} 42. Kf3 {[%clk 0:01:11]}  Rh2 {[%clk 0:00:14]} 43. Kg3 {[%clk 0:01:11]}  Rb2 {[%clk 0:00:14]} 44. h4 {[%clk 0:01:11]}  Kg7 {[%clk 0:00:13]} 45. g5 {[%clk 0:01:10]}  h6 {[%clk 0:00:12]} 46. Rb7 {[%clk 0:01:04]}  h5 {[%clk 0:00:11]} 47. Rb5 {[%clk 0:01:02]}  Rb1 {[%clk 0:00:10]} 48. Kg2 {[%clk 0:01:02]}  b2 {[%clk 0:00:11]} 49. Rb6 {[%clk 0:01:02]}  Kf8 {[%clk 0:00:10]} 50. Rb7 {[%clk 0:00:56]}  Ke8 {[%clk 0:00:10]} 51. Kh2 {[%clk 0:00:57]}  Kd8 {[%clk 0:00:09]} 52. Kg2 {[%clk 0:00:55]}  Kc8 {[%clk 0:00:10]} 53. Rb3 {[%clk 0:00:54]}  Kc7 {[%clk 0:00:09]} 54. f5 {[%clk 0:00:47]}  Kd6 {[%clk 0:00:09]} 55. fxg6 {[%clk 0:00:47]}  fxg6 {[%clk 0:00:10]} 56. Rb6+ {[%clk 0:00:47]}  Ke5 {[%clk 0:00:09]} 57. Rb4 {[%clk 0:00:46]}  Kf5 {[%clk 0:00:09]} 58. Kh2 {[%clk 0:00:46]}  Ke5 {[%clk 0:00:09]} 59. Kg2 {[%clk 0:00:46]}  Kd5 {[%clk 0:00:09]} 60. Kh2 {[%clk 0:00:42]}  Kc5 {[%clk 0:00:10]} 61. Rb8 {[%clk 0:00:41]}  Kc4 {[%clk 0:00:10]} 62. Kg2 {[%clk 0:00:40]}  Kc3 {[%clk 0:00:10]} 63. Kh2 {[%clk 0:00:40]}  Rc1 {[%clk 0:00:09]} 64. Rc8+ {[%clk 0:00:38]}  Kd3 {[%clk 0:00:09]} 65. Rd8+ {[%clk 0:00:39]}  Ke4 {[%clk 0:00:09]} 66. Re8+ {[%clk 0:00:26]}  Kf4 {[%clk 0:00:10]} 0-1

[Event "December 19 Early 2023"]
[Site "https://www.chess.com"]
[Date "2023.12.19"]
[Round "4"]
[White "Ovezdurdyyeva, Jemal"]
[Black "Santos, Isaque Goncalves"]
[Result "0-1"]
[Board "204"]
[TimeControl "180+1"]
[WhiteFideId "14001888"]
[BlackFideId "2103885"]
[WhiteElo "2086"]
[BlackElo "1901"]
[WhiteTeam "TKM"]
[BlackTeam "BRA"]
[WhiteClock "0:00:34"]
[BlackClock "0:00:26"]

1. e4 {[%clk 0:02:59]}  e6 {[%clk 0:02:58]} 2. d4 {[%clk 0:02:58]}  d5 {[%clk 0:02:57]} 3. Nd2 {[%clk 0:02:58]}  Nf6 {[%clk 0:02:56]} 4. Ngf3 {[%clk 0:02:53]}  dxe4 {[%clk 0:02:49]} 5. Ng5 {[%clk 0:02:52]}  Qxd4 {[%clk 0:02:47]} 6. c3 {[%clk 0:02:53]}  Qe5 {[%clk 0:02:45]} 7. h4 {[%clk 0:02:51]}  h6 {[%clk 0:02:41]} 8. Nh3 {[%clk 0:02:51]}  Bc5 {[%clk 0:02:33]} 9. Nc4 {[%clk 0:02:48]}  Qh5 {[%clk 0:02:16]} 10. Qxh5 {[%clk 0:02:44]}  Nxh5 {[%clk 0:02:15]} 11. Be2 {[%clk 0:02:45]}  Nf6 {[%clk 0:02:10]} 12. Bf4 {[%clk 0:02:45]}  Nd5 {[%clk 0:02:03]} 13. O-O-O {[%clk 0:02:41]}  Nxf4 {[%clk 0:01:52]} 14. Nxf4 {[%clk 0:02:42]}  Bxf2 {[%clk 0:01:51]} 15. Rhf1 {[%clk 0:02:32]}  Bxh4 {[%clk 0:01:50]} 16. Nh5 {[%clk 0:02:32]}  Bg5+ {[%clk 0:01:47]} 17. Kc2 {[%clk 0:02:32]}  O-O {[%clk 0:01:46]} 18. Ne5 {[%clk 0:02:25]}  f5 {[%clk 0:01:26]} 19. Bc4 {[%clk 0:02:12]}  Kh7 {[%clk 0:01:23]} 20. g4 {[%clk 0:02:09]}  f4 {[%clk 0:01:17]} 21. Ng3 {[%clk 0:02:01]}  e3 {[%clk 0:01:12]} 22. Ne4 {[%clk 0:02:01]}  Nc6 {[%clk 0:00:57]} 23. Nxg5+ {[%clk 0:01:56]}  hxg5 {[%clk 0:00:50]} 24. Rh1+ {[%clk 0:01:55]}  Kg8 {[%clk 0:00:49]} 25. Ng6 {[%clk 0:01:54]}  Rf6 {[%clk 0:00:44]} 26. Bd3 {[%clk 0:01:46]}  Kf7 {[%clk 0:00:43]} 27. Nh8+ {[%clk 0:01:36]}  Kg8 {[%clk 0:00:41]} 28. Be4 {[%clk 0:01:25]}  Rh6 {[%clk 0:00:39]} 29. Ng6 {[%clk 0:01:22]}  Kf7 {[%clk 0:00:38]} 30. Nh8+ {[%clk 0:01:17]}  Kg8 {[%clk 0:00:38]} 31. Ng6 {[%clk 0:01:18]}  Kf7 {[%clk 0:00:34]} 32. Nh8+ {[%clk 0:01:10]}  Kf6 {[%clk 0:00:34]} 33. Ng6 {[%clk 0:00:52]}  Rxg6 {[%clk 0:00:33]} 34. Bxg6 {[%clk 0:00:52]}  Kxg6 {[%clk 0:00:34]} 35. Rh8 {[%clk 0:00:51]}  Ne7 {[%clk 0:00:32]} 36. Re8 {[%clk 0:00:45]}  Kf7 {[%clk 0:00:32]} 37. Rh8 {[%clk 0:00:45]}  b6 {[%clk 0:00:30]} 38. Rdd8 {[%clk 0:00:44]}  e5 {[%clk 0:00:29]} 39. Kd3 {[%clk 0:00:44]}  Ba6+ {[%clk 0:00:26]} 40. Kc2 {[%clk 0:00:40]}  Rxd8 {[%clk 0:00:26]} 41. Rxd8 {[%clk 0:00:39]}  e2 {[%clk 0:00:27]} 42. Kd2 {[%clk 0:00:39]}  f3 {[%clk 0:00:27]} 43. Ke1 {[%clk 0:00:39]}  e4 {[%clk 0:00:27]} 44. Kf2 {[%clk 0:00:39]}  Ke6 {[%clk 0:00:27]} 45. Re8 {[%clk 0:00:34]}  e3+ {[%clk 0:00:26]} 0-1

[Event "December 19 Early 2023"]
[Site "https://www.chess.com"]
[Date "2023.12.19"]
[Round "4"]
[White "Figorito, Nick"]
[Black "UnTucopalaTimba"]
[Result "1/2-1/2"]
[Board "205"]
[TimeControl "180+1"]
[WhiteFideId "30923689"]
[WhiteElo "2416"]
[BlackElo "1669"]
[WhiteTeam "USA"]
[WhiteClock "0:00:08"]
[BlackClock "0:00:44"]

1. Nf3 {[%clk 0:03:00]}  d5 {[%clk 0:02:57]} 2. g3 {[%clk 0:03:01]}  g6 {[%clk 0:02:56]} 3. Bg2 {[%clk 0:03:01]}  Bg7 {[%clk 0:02:56]} 4. d4 {[%clk 0:03:02]}  Nf6 {[%clk 0:02:56]} 5. O-O {[%clk 0:03:02]}  O-O {[%clk 0:02:56]} 6. c4 {[%clk 0:03:02]}  c6 {[%clk 0:02:54]} 7. cxd5 {[%clk 0:03:02]}  cxd5 {[%clk 0:02:54]} 8. Nc3 {[%clk 0:03:02]}  Nc6 {[%clk 0:02:54]} 9. Bf4 {[%clk 0:03:02]}  a6 {[%clk 0:02:53]} 10. Ne5 {[%clk 0:03:00]}  Nd7 {[%clk 0:02:51]} 11. Nxd5 {[%clk 0:02:39]}  Ndxe5 {[%clk 0:02:45]} 12. dxe5 {[%clk 0:02:36]}  Bxe5 {[%clk 0:02:41]} 13. Bg5 {[%clk 0:02:13]}  Bxb2 {[%clk 0:02:31]} 14. Rb1 {[%clk 0:02:13]}  Bf6 {[%clk 0:02:28]} 15. Bh6 {[%clk 0:02:06]}  Re8 {[%clk 0:02:25]} 16. Nxf6+ {[%clk 0:02:02]}  exf6 {[%clk 0:02:24]} 17. e3 {[%clk 0:01:26]}  Qc7 {[%clk 0:02:17]} 18. Qc2 {[%clk 0:01:19]}  Bf5 {[%clk 0:02:09]} 19. Rxb7 {[%clk 0:00:57]}  Qxb7 {[%clk 0:02:04]} 20. Qxc6 {[%clk 0:00:57]}  Qxc6 {[%clk 0:01:58]} 21. Bxc6 {[%clk 0:00:58]}  Rac8 {[%clk 0:01:55]} 22. Bxe8 {[%clk 0:00:58]}  Rxe8 {[%clk 0:01:55]} 23. Bf4 {[%clk 0:00:57]}  Rc8 {[%clk 0:01:52]} 24. Kg2 {[%clk 0:00:41]}  Rc2 {[%clk 0:01:48]} 25. Ra1 {[%clk 0:00:40]}  Be6 {[%clk 0:01:46]} 26. a3 {[%clk 0:00:36]}  Bd5+ {[%clk 0:01:43]} 27. Kf1 {[%clk 0:00:33]}  Bc4+ {[%clk 0:01:41]} 28. Kg1 {[%clk 0:00:32]}  Ra2 {[%clk 0:01:41]} 29. Rxa2 {[%clk 0:00:32]}  Bxa2 {[%clk 0:01:41]} 30. Kf1 {[%clk 0:00:32]}  Kf8 {[%clk 0:01:39]} 31. Ke2 {[%clk 0:00:31]}  Ke7 {[%clk 0:01:38]} 32. Kd3 {[%clk 0:00:32]}  Ke6 {[%clk 0:01:35]} 33. Kd4 {[%clk 0:00:31]}  Bd5 {[%clk 0:01:27]} 34. e4 {[%clk 0:00:30]}  Bc6 {[%clk 0:01:26]} 35. h4 {[%clk 0:00:28]}  h5 {[%clk 0:01:24]} 36. Bc7 {[%clk 0:00:26]}  Bb5 {[%clk 0:01:24]} 37. Bd8 {[%clk 0:00:26]}  f5 {[%clk 0:01:22]} 38. e5 {[%clk 0:00:23]}  Bf1 {[%clk 0:01:16]} 39. Bf6 {[%clk 0:00:21]}  Bb5 {[%clk 0:01:15]} 40. Kc5 {[%clk 0:00:22]}  Be2 {[%clk 0:01:12]} 41. Kb6 {[%clk 0:00:21]}  Kd5 {[%clk 0:01:10]} 42. Kc7 {[%clk 0:00:20]}  Ke6 {[%clk 0:01:09]} 43. Kd8 {[%clk 0:00:20]}  Bb5 {[%clk 0:01:08]} 44. Kc7 {[%clk 0:00:21]}  Be2 {[%clk 0:01:06]} 45. Kb6 {[%clk 0:00:21]}  Kd7 {[%clk 0:01:02]} 46. Kc5 {[%clk 0:00:19]}  Ke6 {[%clk 0:01:02]} 47. Kd4 {[%clk 0:00:19]}  Bb5 {[%clk 0:01:01]} 48. Ke3 {[%clk 0:00:19]}  Kd5 {[%clk 0:01:00]} 49. Kf4 {[%clk 0:00:19]}  Be2 {[%clk 0:00:55]} 50. Bd8 {[%clk 0:00:19]}  Bb5 {[%clk 0:00:54]} 51. Bc7 {[%clk 0:00:19]}  Ke6 {[%clk 0:00:54]} 52. Kg5 {[%clk 0:00:19]}  Be2 {[%clk 0:00:52]} 53. Bd6 {[%clk 0:00:20]}  Bc4 {[%clk 0:00:51]} 54. Kf4 {[%clk 0:00:19]}  Bb5 {[%clk 0:00:51]} 55. f3 {[%clk 0:00:18]}  Be2 {[%clk 0:00:50]} 56. Ke3 {[%clk 0:00:17]}  Bb5 {[%clk 0:00:48]} 57. Kf4 {[%clk 0:00:14]}  Be2 {[%clk 0:00:48]} 58. Ke3 {[%clk 0:00:15]}  Bb5 {[%clk 0:00:48]} 59. f4 {[%clk 0:00:15]}  Kd5 {[%clk 0:00:47]} 60. Bb4 {[%clk 0:00:14]}  Kc4 {[%clk 0:00:45]} 61. Bd6 {[%clk 0:00:13]}  Kb3 {[%clk 0:00:45]} 62. Bb4 {[%clk 0:00:13]}  Kc4 {[%clk 0:00:44]} 63. Bd6 {[%clk 0:00:13]}  Kb3 {[%clk 0:00:45]} 64. Bb4 {[%clk 0:00:08]}  Kc4 {[%clk 0:00:44]} 1/2-1/2

[Event "December 19 Early 2023"]
[Site "https://www.chess.com"]
[Date "2023.12.19"]
[Round "4"]
[White "Rogov, Matfey"]
[Black "Obon Temprano, Sergi"]
[Result "0-1"]
[Board "207"]
[TimeControl "180+1"]
[WhiteFideId "44191308"]
[BlackFideId "2226545"]
[WhiteElo "2057"]
[BlackElo "2135"]
[WhiteTeam "RUS"]
[BlackTeam "ESP"]
[WhiteClock "0:00:00"]
[BlackClock "0:00:18"]

1. e4 {[%clk 0:03:00]}  e5 {[%clk 0:02:59]} 2. Nf3 {[%clk 0:02:59]}  Nc6 {[%clk 0:02:58]} 3. c3 {[%clk 0:02:59]}  Nf6 {[%clk 0:02:57]} 4. d4 {[%clk 0:02:59]}  exd4 {[%clk 0:02:56]} 5. e5 {[%clk 0:03:00]}  Ne4 {[%clk 0:02:56]} 6. Qe2 {[%clk 0:02:50]}  f5 {[%clk 0:02:55]} 7. exf6 {[%clk 0:02:39]}  d5 {[%clk 0:02:55]} 8. cxd4 {[%clk 0:02:35]}  Bb4+ {[%clk 0:02:54]} 9. Bd2 {[%clk 0:02:30]}  Bxd2+ {[%clk 0:02:47]} 10. Nbxd2 {[%clk 0:02:31]}  O-O {[%clk 0:02:47]} 11. Nxe4 {[%clk 0:02:24]}  dxe4 {[%clk 0:02:46]} 12. Qxe4 {[%clk 0:01:38]}  Re8 {[%clk 0:02:39]} 13. Bc4+ {[%clk 0:01:31]}  Kf8 {[%clk 0:01:52]} 14. fxg7+ {[%clk 0:01:22]}  Kxg7 {[%clk 0:01:51]} 15. Ne5 {[%clk 0:01:22]}  Qxd4 {[%clk 0:01:35]} 16. Qxd4 {[%clk 0:01:21]}  Nxd4 {[%clk 0:01:34]} 17. O-O-O {[%clk 0:01:19]}  c5 {[%clk 0:01:10]} 18. f4 {[%clk 0:01:15]}  a6 {[%clk 0:01:06]} 19. Rd3 {[%clk 0:01:10]}  b5 {[%clk 0:01:06]} 20. Rg3+ {[%clk 0:01:08]}  Kf6 {[%clk 0:00:57]} 21. Bf1 {[%clk 0:00:59]}  Bf5 {[%clk 0:00:49]} 22. Bd3 {[%clk 0:00:51]}  c4 {[%clk 0:00:33]} 23. Bxf5 {[%clk 0:00:50]}  Ne2+ {[%clk 0:00:32]} 24. Kc2 {[%clk 0:00:46]}  Nxg3 {[%clk 0:00:31]} 25. hxg3 {[%clk 0:00:44]}  Kxf5 {[%clk 0:00:31]} 26. Rxh7 {[%clk 0:00:42]}  Rg8 {[%clk 0:00:28]} 27. Rf7+ {[%clk 0:00:38]}  Ke4 {[%clk 0:00:28]} 28. g4 {[%clk 0:00:11]}  Raf8 {[%clk 0:00:25]} 29. Rxf8 {[%clk 0:00:10]}  Rxf8 {[%clk 0:00:26]} 30. g3 {[%clk 0:00:11]}  Rh8 {[%clk 0:00:26]} 31. g5 {[%clk 0:00:09]}  Rh2+ {[%clk 0:00:24]} 32. Kc3 {[%clk 0:00:08]}  Rh3 {[%clk 0:00:23]} 33. Kb4 {[%clk 0:00:05]}  Rxg3 {[%clk 0:00:22]} 34. Ka5 {[%clk 0:00:04]}  Kxf4 {[%clk 0:00:22]} 35. Nd7 {[%clk 0:00:00]}  Rg2 {[%clk 0:00:18]} 0-1